bitfinex/quotes_SOLUSD_20250829
["timestamp","ask_amount","ask_price","bid_price","bid_amount"]
[1756503924476,41.4,204.08,204.07,0.74]
[1756503924676,46.85397613,204.08,204.07,0.74]
[1756503926658,5.45397613,204.08,204.07,0.74]
[1756503927169,46.85397613,204.08,204.07,0.74]
[1756503928754,46.85397613,204.08,204.07,0.03]
[1756503929265,51.75401533,204.08,204.07,0.03]
[1756503929462,51.75401533,204.08,204.07,0.74]
[1756503929674,10.35401533,204.08,204.07,0.74]
[1756503929986,51.73401533,204.08,204.07,0.03]
[1756503930275,10.35401533,204.08,204.07,0.03]
[1756503930475,51.73401533,204.08,204.07,0.03]
[1756503930784,51.73401533,204.08,204.07,0.74]
[1756503930960,51.73401533,204.08,204.07,0.03]
[1756503931162,46.2800392,204.08,204.07,0.03]
[1756503931362,51.73401533,204.08,204.07,0.74]
[1756503932889,51.73401533,204.08,204.07,0.03]
[1756503933377,46.83397613,204.08,204.07,0.03]
[1756503933570,46.81397613,204.08,204.07,0.03]
[1756503934279,51.71401533,204.08,204.07,0.03]
[1756503934584,46.2600392,204.08,204.07,0.03]
[1756503934782,51.71401533,204.08,204.07,0.03]
[1756503935077,10.35401533,204.08,204.07,0.03]
[1756503935391,41.36,204.08,204.07,0.74]
[1756503935579,46.81397613,204.08,204.07,0.74]
[1756503935962,46.81397613,204.08,204.07,0.03]
[1756503936180,60.40957014,204.08,204.07,0.03]
[1756503936382,60.50030748,204.08,204.07,0.03]
[1756503936683,60.50030748,204.08,204.05,0.03]
[1756503936684,13.59559401,204.07,204.05,0.03]
[1756503936886,46.79397613,204.06,204.05,0.03]
[1756503937474,51.69449558,204.06,204.05,0.03]
[1756503938767,65.29008959,204.06,204.05,0.03]
[1756503940881,23.95008959,204.06,204.05,0.03]
[1756503941288,65.29008959,204.06,204.05,0.03]
[1756503941877,23.95008959,204.06,204.05,0.03]
[1756503942102,65.29008959,204.06,204.05,0.74]
[1756503942887,59.83611346,204.06,204.05,0.74]
[1756503943292,5.45397613,204.06,204.05,0.74]
[1756503943487,41.34,204.07,204.05,0.74]
[1756503943791,67.34,204.07,204.05,0.74]
[1756503943990,41.34,204.08,204.05,0.74]
[1756503944173,17.20851963,204.1,204.05,0.74]
[1756503944174,5.45397613,204.06,204.05,0.03]
[1756503944575,26.0,204.06,204.05,0.74]
[1756503944780,4.95962204,204.1,204.05,0.74]
[1756503944781,5.45397613,204.09,204.05,0.74]
[1756503945084,13.59559401,204.09,204.05,0.74]
[1756503945691,46.29962204,204.1,204.05,0.74]
[1756503946582,51.75359817,204.1,204.05,0.74]
[1756503947082,46.29962204,204.1,204.05,0.74]
[1756503947286,0.06,204.1,204.05,0.74]
[1756503948084,5.51397613,204.1,204.05,0.74]
[1756503949278,10.41356975,204.1,204.05,0.74]
[1756503949990,0.06,204.1,204.05,11.09472421]
[1756503950190,0.06,204.1,204.08,5.45397613]
[1756503950366,0.06,204.1,204.09,5.45397613]
[1756503950570,0.06,204.13,204.09,0.71]
[1756503950769,0.06,204.13,204.1,5.45397613]
[1756503950996,0.06,204.13,204.11,0.71]
[1756503961185,0.06,204.13,204.12,0.67]
[1756503971521,0.06,204.13,204.1,0.03]
[1756503971818,0.06,204.13,204.11,0.67]
[1756503972401,5.51397613,204.13,204.11,0.67]
[1756503972714,5.51397613,204.13,204.12,0.67]
[1756503972910,5.51397613,204.13,204.1,0.03]
[1756503973096,5.51397613,204.13,204.11,0.67]
[1756503973298,5.51397613,204.13,204.12,0.67]
[1756503973600,0.06,204.13,204.12,0.67]
[1756503974498,0.06,204.13,204.1,0.03]
[1756503974717,0.06,204.13,204.11,0.67]
[1756503975013,0.06,204.13,204.1,0.03]
[1756503975218,0.06,204.13,204.1,0.7]
[1756503975395,0.06,204.13,204.11,0.67]
[1756503977725,26.0,204.11,204.07,0.03]
[1756503977893,26.0,204.09,204.07,0.03]
[1756503978211,26.0,204.08,204.07,0.03]
[1756503979294,49.97960934,204.08,204.07,0.03]
[1756503979487,49.97960934,204.08,204.02,0.03]
[1756503979488,39.59559401,204.05,204.02,0.03]
[1756503979797,86.82957014,204.05,204.02,0.03]
[1756503980113,86.85957014,204.05,204.02,0.03]
[1756503980497,13.59559401,204.04,204.02,0.03]
[1756503980825,19.04957014,204.03,204.02,0.03]
[1756503981117,19.07957014,204.03,204.02,0.03]
[1756503981285,65.72081015,204.03,204.02,0.03]
[1756503981688,13.59559401,204.02,204.01,0.2]
[1756503981887,24.53354627,204.02,204.01,0.2]
[1756503982292,24.53354627,204.02,204.0,0.03]
[1756503982494,24.50354627,204.01,204.0,0.03]
[1756503982895,24.53354627,204.01,204.0,0.03]
[1756503983195,26.0,203.96,203.95,0.03]
[1756503983509,13.59559401,203.91,203.89,0.2]
[1756503983716,66.16354627,203.9,203.89,0.2]
[1756503983900,39.59559401,203.87,203.84,0.2]
[1756503984102,86.68957014,203.87,203.84,0.2]
[1756503984309,86.71957014,203.87,203.84,0.2]
[1756503984503,88.68638014,203.87,203.84,0.2]
[1756503984705,47.04638014,203.87,203.84,0.2]
[1756503985027,88.66638014,203.87,203.84,0.2]
[1756503985198,93.57146671,203.87,203.84,0.2]
[1756503986030,97.5180202,203.87,203.84,0.2]
[1756503987933,13.59559401,203.86,203.84,0.2]
[1756503988223,13.59559401,203.83,203.79,0.03]
[1756503988412,66.52354627,203.83,203.79,0.03]
[1756503988616,66.55354627,203.83,203.82,1e-08]
[1756503988798,66.55354627,203.83,203.79,0.03]
[1756503988799,39.59559401,203.8,203.79,0.03]
[1756503989001,97.41031761,203.8,203.79,0.03]
[1756503989528,13.59559401,203.79,203.77,0.03]
[1756503989729,61.04957014,203.78,203.77,0.03]
[1756503989918,19.04957014,203.78,203.77,0.03]
[1756503990233,61.06957014,203.78,203.77,0.03]
[1756503990616,55.61559401,203.78,203.77,0.03]
[1756503990812,13.59559401,203.78,203.77,0.69]
[1756503991028,61.10957014,203.78,203.77,0.69]
[1756503991523,47.53397613,203.78,203.77,0.69]
[1756503991905,42.08,203.78,203.77,0.69]
[1756503992715,47.53397613,203.78,203.77,0.69]
[1756503992899,5.45397613,203.78,203.77,0.69]
[1756503993104,42.08,203.78,203.77,0.69]
[1756503993336,47.53397613,203.78,203.77,0.69]
[1756503994529,52.38122904,203.78,203.77,0.69]
[1756503995225,52.38122904,203.78,203.77,0.03]
[1756503995609,52.38122904,203.78,203.77,0.69]
[1756503996027,52.38122904,203.78,203.77,0.03]
[1756503996408,65.97682305,203.78,203.77,0.03]
[1756503998119,60.52284692,203.78,203.77,0.03]
[1756503998434,65.97682305,203.78,203.77,0.03]
[1756503999419,42.02,203.78,203.77,0.69]
[1756504001036,26.0,203.8,203.77,0.69]
[1756504001221,47.27397613,203.79,203.77,0.69]
[1756504001932,5.45397613,203.81,203.77,0.69]
[1756504002138,13.59559401,203.83,203.77,0.69]
[1756504002139,41.8,203.8,203.77,0.69]
[1756504002343,41.76,203.79,203.77,0.69]
[1756504002641,10.36005028,203.83,203.77,0.69]
[1756504002943,47.19397613,203.82,203.77,0.69]
[1756504004238,46.64634816,203.82,203.77,0.69]
[1756504004448,5.45397613,203.81,203.77,0.69]
[1756504004647,5.45397613,203.79,203.78,0.66]
[1756504004847,5.45397613,203.79,203.77,0.03]
[1756504005023,47.11397613,203.78,203.77,0.69]
[1756504005224,47.11397613,203.78,203.77,0.03]
[1756504006549,52.02122904,203.78,203.77,0.03]
[1756504007825,46.56725291,203.78,203.77,0.03]
[1756504008029,52.02122904,203.78,203.77,0.03]
[1756504008226,78.02122904,203.78,203.77,0.03]
[1756504010948,65.61682305,203.78,203.77,0.03]
[1756504011149,65.64682305,203.78,203.77,0.03]
[1756504011730,65.61682305,203.78,203.77,0.03]
[1756504012331,60.16284692,203.78,203.77,0.03]
[1756504012536,65.61682305,203.78,203.77,0.03]
[1756504013052,60.16284692,203.78,203.77,0.03]
[1756504013237,65.61682305,203.78,203.77,0.03]
[1756504015360,65.51682305,203.78,203.77,0.03]
[1756504016167,49.95682305,203.78,203.77,0.03]
[1756504016481,65.49682305,203.78,203.77,0.03]
[1756504016843,65.52682305,203.78,203.77,0.03]
[1756504017566,65.49682305,203.78,203.77,0.03]
[1756504018772,65.52682305,203.78,203.77,0.03]
[1756504018970,65.49682305,203.78,203.77,0.03]
[1756504023077,23.95682305,203.78,203.77,0.03]
[1756504023408,65.29682305,203.78,203.77,0.03]
[1756504029105,65.29682305,203.78,203.77,0.73]
[1756504029270,59.84284692,203.78,203.77,0.73]
[1756504029474,65.29682305,203.78,203.77,0.73]
[1756504030969,23.95682305,203.78,203.77,0.73]
[1756504031291,65.29682305,203.78,203.77,0.73]
[1756504032371,23.95682305,203.78,203.77,0.73]
[1756504032580,65.29682305,203.78,203.77,0.73]
[1756504034698,49.95682305,203.78,203.77,0.73]
[1756504034886,65.29682305,203.78,203.77,0.73]
[1756504040880,65.29682305,203.78,203.74,0.03]
[1756504041213,45.04957014,203.75,203.74,0.03]
[1756504041398,80.93559401,203.75,203.74,0.03]
[1756504041580,39.59559401,203.75,203.74,0.03]
[1756504041780,19.04957014,203.75,203.74,0.73]
[1756504042006,60.36957014,203.75,203.74,0.73]
[1756504043704,41.32,203.75,203.74,0.73]
[1756504048597,5.45397613,203.76,203.74,0.73]
[1756504049104,41.32,203.75,203.74,0.73]
[1756504051403,46.77397613,203.75,203.74,0.73]
[1756504054716,41.32,203.75,203.74,0.73]
[1756504054897,5.45397613,203.76,203.74,0.73]
[1756504060112,41.36,203.77,203.74,0.73]
[1756504060320,5.45397613,203.76,203.74,0.73]
[1756504061399,5.45397613,203.76,203.75,0.7]
[1756504063932,46.81397613,203.77,203.75,0.7]
[1756504064430,0.06,203.77,203.75,5.60792522]
[1756504064635,0.06,203.77,203.76,0.7]
[1756504066013,0.06,203.77,203.76,5.60773458]
[1756504068811,0.06,203.77,203.76,11.06171071]
[1756504069712,0.06,203.77,203.76,13.02861771]
[1756504072018,0.06,203.77,203.76,7.57464158]
[1756504072219,0.06,203.77,203.76,13.02861771]
[1756504075641,0.06,203.79,203.76,13.02861771]
[1756504075820,0.06,203.8,203.78,5.45397613]
[1756504076015,0.06,203.84,203.79,10.90795226]
[1756504076229,36.69397613,203.92,203.83,5.45397613]
[1756504076438,31.24,203.92,203.87,5.45397613]
[1756504076739,31.24,203.92,203.89,5.45397613]
[1756504077041,31.24,203.92,203.9,0.7]
[1756504077540,31.24,203.92,203.89,5.45397613]
[1756504077732,31.24,203.92,203.9,5.60436488]
[1756504078836,31.60397613,203.95,203.9,5.60436488]
[1756504079219,31.45397613,203.95,203.9,4.90436488]
[1756504079436,26.0,203.95,203.91,0.7]
[1756504079921,31.45397613,203.95,203.91,0.7]
[1756504080938,5.45397613,203.94,203.89,5.5745953]
[1756504081129,26.15,203.95,203.9,0.67]
[1756504081330,5.45397613,203.94,203.9,0.67]
[1756504081841,26.15,203.95,203.9,0.67]
[1756504081842,5.60397613,203.95,203.9,5.57429096]
[1756504082056,5.45397613,203.95,203.91,0.67]
[1756504082355,5.45397613,203.96,203.91,0.67]
[1756504082527,5.60397613,203.96,203.91,0.67]
[1756504083230,31.45397613,203.95,203.91,0.67]
[1756504083549,26.0,203.95,203.91,0.67]
[1756504083926,26.0,203.95,203.92,0.67]
[1756504084126,5.45397613,203.96,203.93,0.67]
[1756504084934,13.59559401,203.96,203.92,0.67]
[1756504085941,26.25,203.98,203.92,0.67]
[1756504086255,13.59559401,203.97,203.93,0.67]
[1756504087226,26.1,203.98,203.93,4.90361716]
[1756504087430,26.1,203.98,203.94,0.67]
[1756504087630,0.1,203.98,203.95,0.67]
[1756504088131,0.1,203.98,203.96,0.67]
[1756504088537,26.1,203.98,203.97,0.67]
[1756504088944,0.1,203.98,203.97,0.67]
[1756504089145,0.1,203.98,203.97,5.57268176]
[1756504090351,0.1,203.98,203.97,0.67]
[1756504091164,0.1,203.98,203.94,11.69665813]
[1756504091348,0.1,203.98,203.86,12.26304104]
[1756504091349,5.45397613,203.96,203.86,12.26304104]
[1756504091537,5.45397613,203.95,203.9,0.67]
[1756504092567,5.45397613,203.96,203.9,5.57426259]
[1756504092862,5.45397613,203.96,203.91,0.67]
[1756504093161,5.45397613,203.96,203.92,0.67]
[1756504094063,5.45397613,203.96,203.9,4.90426259]
[1756504094249,5.45397613,203.96,203.91,0.67]
[1756504095063,5.45397613,203.96,203.9,4.90426259]
[1756504095246,5.45397613,203.96,203.92,0.67]
[1756504095866,51.60669379,203.97,203.92,0.67]
[1756504096045,46.70397613,203.97,203.92,0.67]
[1756504097269,5.45397613,203.96,203.92,0.67]
[1756504097654,41.25,203.97,203.92,0.67]
[1756504097856,5.45397613,203.96,203.92,0.67]
[1756504099780,46.70397613,203.97,203.92,0.67]
[1756504100074,5.60397613,203.97,203.92,0.67]
[1756504100663,0.15,203.97,203.92,5.57374165]
[1756504100868,26.0,203.97,203.93,0.67]
[1756504101068,26.0,203.97,203.92,4.90374165]
[1756504101266,26.0,203.97,203.94,0.67]
[1756504101479,26.0,203.97,203.93,0.67]
[1756504109653,26.0,203.97,203.93,5.57361329]
[1756504110566,26.0,203.97,203.93,0.67]
[1756504110974,0.25,203.98,203.93,0.67]
[1756504111168,0.1,203.98,203.94,0.66]
[1756504111480,0.1,203.98,203.95,0.66]
[1756504111668,0.1,203.98,203.96,0.66]
[1756504111987,0.06,203.97,203.96,0.66]
[1756504136911,0.1,203.98,203.97,30.90268176]
[1756504137123,0.1,203.98,203.97,8.39673249]
[1756504137290,0.1,204.0,203.99,26.0]
[1756504137915,0.1,204.0,203.99,28.624492]
[1756504138119,0.1,204.0,203.99,33.52669308]
[1756504139416,0.1,204.0,203.99,37.02074381]
[1756504142016,0.06,204.1,204.04,13.59559401]
[1756504142222,0.06,204.1,204.09,3.49405073]
[1756504142592,0.06,204.1,204.09,4.19405073]
[1756504142792,0.06,204.1,204.09,6.15767473]
[1756504143395,0.06,204.1,204.09,8.11424898]
[1756504143717,0.06,204.1,204.09,13.01404808]
[1756504147211,0.06,204.13,204.09,66.02354585]
[1756504147516,0.06,204.13,204.12,5.45062498]
[1756504147915,0.06,204.13,204.12,8.11395898]
[1756504148620,0.06,204.13,204.12,13.01303795]
[1756504149527,0.06,204.13,204.12,1.963334]
[1756504151199,0.06,204.13,204.09,0.7]
[1756504151399,0.06,204.13,204.1,5.45062498]
[1756504151599,0.47,204.13,204.09,6.15062498]
[1756504151801,0.47,204.13,204.08,5.45062498]
[1756504152001,0.47,204.13,204.08,0.7]
[1756504152217,0.41,204.12,204.07,10.96124998]
[1756504152417,0.41,204.12,204.07,6.15062498]
[1756504153022,4.95883897,204.13,204.07,5.45062498]
[1756504153331,0.41,204.11,204.07,5.45062498]
[1756504153501,0.41,204.11,204.07,6.15062498]
[1756504153701,10.40946395,204.13,204.07,0.7]
[1756504153915,0.41,204.12,204.07,0.7]
[1756504154425,0.41,204.11,204.06,5.45062498]
[1756504154721,0.41,204.11,204.07,0.7]
[1756504154941,5.36883897,204.13,204.07,0.7]
[1756504155251,10.81946395,204.13,204.07,0.7]
[1756504155425,4.95883897,204.13,204.07,6.15062498]
[1756504155625,0.41,204.12,204.07,0.7]
[1756504156527,10.40946395,204.13,204.07,0.7]
[1756504156728,5.86062498,204.12,204.07,0.7]
[1756504156923,5.86062498,204.12,204.06,5.45062498]
[1756504156924,5.86062498,204.12,204.05,10.35126405]
[1756504157128,10.34981514,204.12,204.06,6.15062498]
[1756504157328,0.41,204.11,204.06,6.15062498]
[1756504157731,10.34981514,204.12,204.06,5.45062498]
[1756504157940,10.75981514,204.12,204.06,5.45062498]
[1756504158143,10.75981514,204.12,204.06,0.7]
[1756504158531,10.34981514,204.12,204.06,0.7]
[1756504158736,0.41,204.11,204.05,15.80188903]
[1756504158936,0.41,204.11,204.05,16.50188903]
[1756504159133,0.41,204.1,204.04,5.45062498]
[1756504159350,5.86062498,204.09,204.03,0.7]
[1756504159648,0.41,204.08,204.03,0.7]
[1756504160028,26.0,204.08,204.03,0.7]
[1756504160249,0.41,204.07,203.99,0.03]
[1756504160429,5.86062498,204.07,204.01,0.7]
[1756504160629,0.41,204.06,204.01,0.7]
[1756504160931,0.41,204.05,203.99,11.08281848]
[1756504161133,5.86062498,204.04,203.99,10.379815]
[1756504161337,5.86062498,204.03,203.99,0.03]
[1756504161750,0.41,204.02,203.99,0.03]
[1756504162139,5.86062498,204.02,203.99,0.03]
[1756504162450,5.45062498,204.02,203.99,0.03]
[1756504162943,5.45062498,204.03,203.99,0.73]
[1756504163144,13.59559401,204.04,203.99,0.73]
[1756504163145,19.04621899,204.04,203.99,0.73]
[1756504163340,19.45621899,204.04,203.99,0.73]
[1756504163542,0.41,204.03,203.99,0.03]
[1756504163931,0.41,204.02,203.99,0.03]
[1756504167146,5.45062498,204.03,203.99,0.03]
[1756504167470,5.86062498,204.03,203.99,0.03]
[1756504168368,6.180625,204.04,204.0,0.7]
[1756504168541,5.45062498,204.06,204.0,6.15062498]
[1756504168860,5.45062498,204.06,204.01,0.7]
[1756504169061,5.45062498,204.06,204.02,0.7]
[1756504169435,5.45062498,204.05,204.0,0.7]
[1756504169659,5.86062498,204.05,204.0,0.7]
[1756504170758,5.86062498,204.05,204.0,5.60189336]
[1756504171864,45.04621899,204.04,203.99,0.03]
[1756504172039,26.0,203.98,203.96,0.03]
[1756504172239,46.03062498,203.97,203.96,0.03]
[1756504172434,46.41062498,203.97,203.96,0.03]
[1756504172845,27.965747,203.97,203.96,0.03]
[1756504173162,1.965747,203.97,203.96,0.03]
[1756504174572,5.45062498,203.99,203.96,0.03]
[1756504176758,46.03062498,204.0,203.96,0.03]
[1756504176944,46.03062498,204.0,203.96,0.74]
[1756504177266,5.45062498,204.0,203.96,0.74]
[1756504178166,5.45062498,204.0,203.96,5.64287735]
[1756504181558,5.45062498,203.99,203.96,5.64287735]
[1756504184078,54.13559401,204.02,203.97,0.71]
[1756504184273,54.51559401,204.02,203.97,0.71]
[1756504184474,5.45062498,204.0,203.97,0.71]
[1756504185765,5.45062498,204.0,203.97,5.61253808]
[1756504186577,45.99062498,204.02,203.98,0.71]
[1756504186788,45.99062498,204.02,203.97,4.90253808]
[1756504187080,5.45062498,204.03,203.99,0.71]
[1756504187275,5.45062498,204.03,204.0,0.71]
[1756504187661,5.45062498,204.03,204.01,0.71]
[1756504187976,5.45062498,204.03,204.0,4.90178199]
[1756504188186,5.45062498,204.03,204.0,5.61178199]
[1756504188360,5.45062498,204.03,204.0,4.90178199]
[1756504188676,5.45062498,204.03,204.01,0.71]
[1756504188875,5.45062498,204.03,204.0,0.71]
[1756504190189,5.45062498,204.03,204.0,5.61181731]
[1756504192171,5.45062498,204.03,204.01,0.71]
[1756504192382,5.45062498,204.03,203.99,0.71]
[1756504192583,5.45062498,204.03,204.0,0.71]
[1756504193382,5.45062498,204.04,204.01,0.71]
[1756504193682,45.95062498,204.05,204.02,0.71]
[1756504194781,40.5,204.05,204.03,0.71]
[1756504195769,0.06,204.05,204.04,0.71]
[1756504195965,0.06,204.05,204.03,4.90121301]
[1756504196279,0.06,204.05,204.04,0.71]
[1756504196887,0.06,204.05,204.04,5.6109998]
[1756504200485,0.06,204.08,204.04,23.31412428]
[1756504200786,0.06,204.08,204.07,5.45062498]
[1756504201174,0.06,204.08,204.07,6.10062498]
[1756504202161,0.06,204.08,204.07,5.55027931]
[1756504202360,0.06,204.08,204.07,11.00090429]
[1756504204080,0.06,204.15,204.12,26.0]
[1756504204281,0.06,204.15,204.13,4.89883897]
[1756504204587,0.06,204.15,204.14,5.45062498]
[1756504204775,0.1,204.16,204.14,6.10062498]
[1756504204968,0.1,204.16,204.15,0.65]
[1756504205175,5.45062498,204.24,204.15,0.65]
[1756504205374,26.0,204.26,204.19,5.45062498]
[1756504205375,5.45062498,204.26,204.19,5.45062498]
[1756504205682,5.45062498,204.26,204.2,0.65]
[1756504205896,5.45062498,204.25,204.2,0.65]
[1756504206078,5.45062498,204.24,204.18,0.65]
[1756504206273,5.45062498,204.25,204.19,10.34802446]
[1756504206487,5.45062498,204.25,204.19,10.99802446]
[1756504206816,5.45062498,204.25,204.2,0.65]
[1756504206973,5.45062498,204.25,204.21,0.65]
[1756504207287,5.45062498,204.26,204.21,0.65]
[1756504207675,5.95062498,204.26,204.21,5.5469168]
[1756504208267,0.5,204.26,204.21,5.5469168]
[1756504208667,5.45062498,204.27,204.22,0.65]
[1756504208869,5.95062498,204.27,204.22,0.65]
[1756504211276,0.5,204.26,204.21,5.45062498]
[1756504211492,0.5,204.26,204.21,6.10062498]
[1756504211791,5.95062498,204.26,204.21,0.65]
[1756504212492,5.95062498,204.25,204.19,5.45062498]
[1756504212682,0.5,204.24,204.18,5.45062498]
[1756504212995,0.5,204.24,204.18,6.10062498]
[1756504213302,5.45062498,204.25,204.19,0.65]
[1756504213607,5.95062498,204.25,204.19,5.54718852]
[1756504214007,5.95062498,204.25,204.19,10.9978135]
[1756504214304,5.95062498,204.25,204.19,5.54718852]
[1756504214469,5.95062498,204.25,204.19,10.9978135]
[1756504214667,5.95062498,204.25,204.19,6.10062498]
[1756504214888,5.45062498,204.24,204.19,0.65]
[1756504215095,5.45062498,204.24,204.19,5.54737915]
[1756504215306,5.95062498,204.23,204.17,6.10062498]
[1756504215503,5.45062498,204.22,204.17,0.65]
[1756504215711,5.95062498,204.22,204.16,5.45062498]
[1756504216099,0.5,204.22,204.16,5.45062498]
[1756504216307,5.95062498,204.22,204.16,6.10062498]
[1756504216508,10.84743997,204.22,204.16,6.10062498]
[1756504216699,10.84743997,204.22,204.16,5.45062498]
[1756504216700,4.89681499,204.22,204.16,5.45062498]
[1756504216900,5.95062498,204.23,204.17,6.10062498]
[1756504217705,10.84709852,204.23,204.17,6.10062498]
[1756504217902,5.450625,204.34,204.22,5.45062498]
[1756504218103,5.45062498,204.3,204.24,5.45062498]
[1756504218313,5.45062498,204.3,204.25,0.65]
[1756504218623,5.45062498,204.29,204.26,0.65]
[1756504218808,5.45062498,204.29,204.24,0.65]
[1756504219714,5.45062498,204.28,204.24,0.65]
[1756504220114,5.45062498,204.29,204.24,0.65]
[1756504220413,0.06,204.27,204.25,0.65]
[1756504222600,0.06,204.27,204.26,0.65]
[1756504223012,0.06,204.27,204.26,6.10062498]
[1756504223713,0.06,204.27,204.26,10.99634611]
[1756504227120,0.06,204.27,204.26,6.10062498]
[1756504227319,0.06,204.27,204.26,0.65]
[1756504227819,0.06,204.27,204.26,6.10062498]
[1756504231609,0.06,204.29,204.26,10.99614234]
[1756504231814,0.06,204.29,204.28,5.45062498]
[1756504232015,0.06,204.29,204.27,6.14062498]
[1756504232218,0.06,204.29,204.28,0.69]
[1756504233033,0.06,204.29,204.25,0.69]
[1756504233414,0.06,204.29,204.26,0.69]
[1756504234717,0.06,204.29,204.24,6.14062498]
[1756504235126,0.62,204.29,204.24,6.14062498]
[1756504235631,0.06,204.29,204.25,0.69]
[1756504235829,0.56,204.28,204.23,5.45062498]
[1756504236031,5.45062498,204.28,204.21,5.45062498]
[1756504236224,5.45062498,204.28,204.23,0.69]
[1756504236425,6.01062498,204.28,204.23,0.69]
[1756504237119,6.01062498,204.28,204.21,5.45062498]
[1756504237120,5.45062498,204.28,204.21,10.34747578]
[1756504237321,5.45062498,204.27,204.21,0.69]
[1756504237940,26.56,204.28,204.21,0.69]
[1756504238235,5.45062498,204.27,204.21,5.58691893]
[1756504238435,36.90589702,204.28,204.21,11.03754391]
[1756504238940,19.60621899,204.27,204.26,0.03]
[1756504239436,24.50170046,204.27,204.26,0.03]
[1756504242212,19.60621899,204.27,204.26,0.03]
[1756504242415,66.12,204.28,204.26,0.03]
[1756504242832,5.45062498,204.27,204.26,0.03]
[1756504243943,6.01062498,204.27,204.26,0.03]
[1756504244120,24.50170046,204.27,204.26,0.03]
[1756504244619,19.05107548,204.27,204.26,0.03]
[1756504244820,24.50170046,204.27,204.26,0.03]
[1756504245843,18.49107548,204.27,204.26,0.03]
[1756504246049,24.50170046,204.27,204.26,0.03]
[1756504246342,0.06,204.29,204.26,0.72]
[1756504246732,0.06,204.29,204.26,6.17062498]
[1756504246929,0.06,204.29,204.26,0.72]
[1756504247235,0.06,204.29,204.27,0.69]
[1756504247421,0.06,204.29,204.28,4.89524182]
[1756504247821,0.06,204.29,204.28,5.58524182]
[1756504250049,0.06,204.29,204.28,0.69]
[1756504251446,5.51062498,204.29,204.27,4.8953889]
[1756504251661,5.51062498,204.29,204.28,0.69]
[1756504253827,0.06,204.29,204.28,0.69]
[1756504254830,0.06,204.29,204.28,5.58524182]
[1756504256533,0.06,204.29,204.28,0.69]
[1756504258838,0.06,204.32,204.28,11.03573564]
[1756504259041,0.06,204.32,204.31,5.45062498]
[1756504259440,0.06,204.32,204.31,0.69]
[1756504260249,0.06,204.32,204.31,5.58452302]
[1756504261365,0.06,204.32,204.31,0.69]
[1756504263369,0.06,204.32,204.29,0.67]
[1756504263571,0.06,204.32,204.27,4.89547898]
[1756504263779,5.45062498,204.31,204.27,5.56547898]
[1756504264363,5.45062498,204.31,204.27,0.67]
[1756504264555,5.45062498,204.29,204.26,0.03]
[1756504264752,0.62,204.28,204.26,0.03]
[1756504265370,6.07062498,204.27,204.26,0.03]
[1756504265971,10.96610645,204.27,204.26,0.03]
[1756504266148,24.56170046,204.27,204.26,0.03]
[1756504266348,28.22307817,204.27,204.26,0.03]
[1756504267280,28.22362689,204.27,204.26,0.03]
[1756504267450,5.45062498,204.2,204.15,0.26]
[1756504267853,6.16062498,204.2,204.15,0.26]
[1756504268279,5.45062498,204.19,204.13,10.34943906]
[1756504268454,6.16062498,204.19,204.13,5.45062498]
[1756504268854,6.16062498,204.19,204.12,10.3496786]
[1756504269372,5.45062498,204.18,204.12,6.12062498]